lending/lending_fUSD_20240111
["ID","MTS","AMOUNT","RATE_DAILY","PERIOD"]
[311262829,1705001444008,-604.0123028,0.000375,30]
[311262831,1705001444017,-604.0123028,0.000375,30]
[311262833,1705001444026,-604.0123028,0.000375,30]
[311262835,1705001444036,-391.91305,0.00037534,14]
[311262837,1705001444046,-2000.0,0.0003754,2]
[311262839,1705001444056,-200.0,0.0003754,2]
[311262841,1705001444066,-2000.0,0.0003754,2]
[311262843,1705001444076,-200.0,0.0003754,2]
[311262845,1705001444086,-4088.65,0.000376,7]
[311262847,1705001444096,-150.0,0.000376,12]
[311262849,1705001444105,-156.94429716,0.00037639,7]
[311262851,1705001444114,-150.1,0.00037652,2]
[311262853,1705001444123,-165.99420507,0.00037669,7]
[311262855,1705001444132,-1106.14195283,0.00037691,10]
[311262857,1705001444141,-182.0,0.00037789,2]
[311262859,1705001444150,-1549.0,0.0003779,3]
[311262861,1705001444159,-3279.62949688,0.00037795,2]
[311262863,1705001444168,-29305.46892077,0.000378,3]
[311262866,1705001444186,-500.0,0.000378,3]
[311262868,1705001444196,-9268.2,0.000378,3]
[311262870,1705001444207,-10926.33107923,0.000378,3]
[311262872,1705001444217,-50000.0,0.000378,2]
[311262874,1705001444226,-6055.44,0.000378,7]
[311262876,1705001444235,-2733.61,0.000378,3]
[311262878,1705001444245,-2733.61,0.000378,3]
[311262880,1705001444255,-2733.61,0.000378,3]
[311262882,1705001444264,-2733.61,0.000378,3]
[311262885,1705001444274,-2733.61,0.000378,3]
[311262887,1705001444283,-2733.61,0.000378,3]
[311262888,1705001444292,-2733.61,0.000378,3]
[311262890,1705001444301,-2733.61,0.000378,3]
[311262892,1705001444310,-2733.61,0.000378,3]
[311262894,1705001444320,-2733.61,0.000378,3]
[311262896,1705001444329,-2733.61,0.000378,3]
[311262898,1705001444338,-2733.61,0.000378,3]
[311262900,1705001444347,-2733.61,0.000378,3]
[311262902,1705001444357,-2733.61,0.000378,3]
[311262904,1705001444366,-2733.61,0.000378,3]
[311262906,1705001444375,-2733.61,0.000378,3]
[311262908,1705001444384,-2733.61,0.000378,3]
[311262910,1705001444393,-2733.61,0.000378,3]
[311262913,1705001444402,-2733.61,0.000378,3]
[311262915,1705001444415,-2733.61,0.000378,3]
[311262917,1705001444426,-157.52,0.000378,3]
[311262919,1705001444435,-157.52,0.000378,3]
[311262921,1705001444444,-157.52,0.000378,3]
[311262923,1705001444453,-157.52,0.000378,3]
[311262925,1705001444462,-7440.62,0.00037808,2]
[311262927,1705001444471,-4902.15,0.00037808,2]
[311262929,1705001444481,-152.14200778,0.00037821,2]
[311262931,1705001444490,-165.99420507,0.00037851,7]
[311262933,1705001444499,-63839.12134343,0.00037864,12]
[311262935,1705001444508,-34881.39155945,0.00037876,11]
[311262941,1705001444559,-5630.86109682,0.00037876,11]
[311262944,1705001444571,-86.09756341,0.00037876,11]
[311262946,1705001444581,-612.44,0.00037876,2]
[311262948,1705001444589,-1431.74954068,0.00037879,14]
[311263180,1705001446516,-271.93888119,0.00036998,4]
[311263182,1705001446526,-3082.24036393,0.00036998,4]
[311263184,1705001446535,-272.71292797,0.00036998,4]
[311263186,1705001446544,-5737.25885435,0.00037499,4]
[311263188,1705001446553,-145162.77246868,0.00037879,14]
[311263191,1705001446573,-17908.99525426,0.00037879,14]
[311263194,1705001446584,-566.84976293,0.00037879,14]
[311263196,1705001446602,-406.78736022,0.0003,4]
[311263199,1705001446613,-254.86173603,0.0003,4]
[311263292,1705001448121,-8163.03199343,0.0003,4]
[311263293,1705001448131,-1733.29718639,0.00037879,14]
[311263294,1705001448144,-2348.10727077,0.00037879,14]
[311263295,1705001497148,3000.0,0.00027,14]
[311263296,1705001515618,2960.3796,0.00022402,2]
[311263299,1705001586825,1000.0,0.000251,30]
[311263300,1705001619032,1000.0,0.000251,30]
[311263301,1705001653540,25553.0,0.00028,30]
[311263303,1705001770797,8983.76556539,0.00032,120]
[311263304,1705001792608,10000.0,0.000311,90]
[311263306,1705001905946,10000.0,0.00025,7]
[311263307,1705001925788,10000.0,0.00025,7]
[311263308,1705001933726,10000.0,0.00025,7]
[311263309,1705001969848,10000.0,0.00025,7]
[311263310,1705002090148,171.11,0.00016712,2]
[311263311,1705002131457,12137.95825473,0.00025,7]
[311263312,1705002166964,154.77882631,0.00022449,2]
[311263314,1705002277432,-1135.01158342,0.00022538,2]
[311263315,1705002277469,-1043.99860251,0.00022539,2]
[311263316,1705002277496,-202.40022443,0.00022539,2]
[311263317,1705002277523,-4697.23814042,0.00022539,2]
[311263318,1705002277550,-363.56577485,0.0002254,2]
[311263319,1705002277884,-598.50658801,0.0002254,2]
[311263320,1705002277911,-386.45072727,0.0002254,2]
[311263321,1705002277937,-2294.06747086,0.00022541,2]
[311263322,1705002277964,-24312.16676934,0.00022543,2]
[311263323,1705002277990,-306.52263409,0.00022571,2]
[311263324,1705002278016,-24660.0714848,0.00022579,2]
[311263325,1705002289855,-2294.06747086,0.00022537,2]
[311263326,1705002289883,-2631.0091152,0.00022579,2]
[311263329,1705002343799,-313.05140552,0.00034997,30]
[311263330,1705002343831,-256.42,0.000369,30]
[311263331,1705002343857,-256.42,0.00037037,30]
[311263332,1705002343881,-511.92,0.00037174,30]
[311263333,1705002343912,-211.15894732,0.00038,39]
[311263344,1705002402814,-305.038799,0.00037494,30]
[311263345,1705002402836,-500.0,0.00037494,120]
[311263346,1705002402860,-1966.56789,0.00037494,30]
[311263347,1705002402882,-150.0,0.00037494,30]
[311263348,1705002402917,-150.0,0.00037494,30]
[311263349,1705002402945,-150.0,0.00037494,30]
[311263350,1705002402966,-150.0,0.00037494,30]
[311263351,1705002402986,-150.0,0.00037494,30]
[311263352,1705002403008,-150.0,0.00037494,30]
[311263353,1705002403029,-250.0,0.00037494,30]
[311263354,1705002403050,-1908.286752,0.00037494,30]
[311263358,1705002435103,-154.77882621,0.00023487,2]
[311263359,1705002435122,-717.23,0.00023833,2]
[311263360,1705002435140,-718.54,0.00023908,2]
[311263361,1705002435159,-654.07640372,0.00024,2]
[311263383,1705002631462,-202.40022443,0.00023992,2]
[311263384,1705002631472,-2294.06747086,0.00023992,2]
[311263385,1705002631481,-160.66398734,0.00023993,2]
[311263386,1705002631493,-202.90178751,0.00023993,2]
[311263387,1705002631503,-311.82193235,0.00023993,2]
[311263388,1705002631512,-1135.01158342,0.00023994,2]
[311263389,1705002631522,-386.45072727,0.00023994,2]
[311263390,1705002631535,-24312.16676934,0.00023995,2]
[311263391,1705002631544,-716.48,0.00023995,2]
[311263392,1705002631553,-736.68,0.00023997,2]
[311263393,1705002631564,-727.98,0.00023997,2]
[311263394,1705002631573,-735.14,0.00023997,2]
[311263395,1705002631583,-55.60359628,0.00024,2]
[311263396,1705002631592,-718.26,0.00024095,2]
[311263397,1705002631602,-731.35,0.00024102,2]
[311263398,1705002631612,-725.82,0.0002411,2]
[311263399,1705002631622,-732.42,0.00024242,2]
[311263400,1705002631631,-499.99,0.000244,2]
[311263401,1705002631640,-738.0,0.000244,2]
[311263402,1705002631650,-154.77882621,0.00024524,2]
[311263403,1705002631659,-722.23,0.00024569,2]
[311263404,1705002631668,-1333.19880575,0.000247,2]
[311263405,1705002631678,-200.98286647,0.00024875,2]
[311263406,1705002631688,-483.14845975,0.00025,2]
[311263407,1705002631699,-550.0,0.00025,3]
[311263408,1705002631709,-3469.3,0.00025,2]
[311263409,1705002631718,-497.05,0.00025513,2]
[311263410,1705002631727,-154.77882621,0.00025562,2]
[311263411,1705002631736,-5472.45581944,0.00026469,2]
[311263412,1705002632765,-3786.12418056,0.00026469,2]
[311263413,1705002632775,-1242.57552478,0.00026485,2]
[311263414,1705002632786,-690.78500141,0.00026485,2]
[311263415,1705002632800,-7391.44947381,0.00026485,2]
[311263416,1705002632809,-3268.1,0.00026575,2]
[311263417,1705002632818,-154.77882621,0.00026599,2]
[311263418,1705002632827,-23900.0,0.00026628,2]
[311263419,1705002632836,-250.0,0.00026848,2]
[311263420,1705002632845,-1000.0,0.00026852,2]
[311263421,1705002632855,-150.67,0.00026921,2]
[311263422,1705002632865,-600.0,0.00027,3]
[311263423,1705002632874,-150.0,0.00027044,2]
[311263424,1705002632882,-2000.0,0.00027044,2]
[311263425,1705002632891,-175.7,0.00027318,2]
[311263426,1705002632900,-155.0,0.00027397,2]
[311263427,1705002632909,-250.0,0.00027397,2]
[311263428,1705002632918,-154.77882621,0.00027637,2]
[311263429,1705002632927,-497.05,0.00027777,2]
[311263430,1705002632936,-687.67126358,0.00028,2]
[311263431,1705002632945,-150.67,0.0002829,2]
[311263432,1705002632955,-715.52,0.00028368,2]
[311263433,1705002632964,-4960.41,0.0002852,2]
[311263434,1705002632974,-165.06,0.00028613,2]
[311263435,1705002632983,-154.77882621,0.00028675,2]
[311263436,1705002632992,-155.0,0.00028767,2]
[311263438,1705002633002,-650.0,0.00029,3]
[311263440,1705002633011,-150.67,0.0002966,2]
[311263442,1705002633020,-154.77882621,0.00029712,2]
[311263443,1705002633030,-195.68945489,0.000298,2]
[311263444,1705002633039,-1042.5165325,0.000299,6]
[311263445,1705002633049,-1574.4322,0.000299,2]
[311263446,1705002633059,-1223.2884,0.000299,2]
[311263447,1705002633069,-168.92862258,0.000299,4]
[311263448,1705002633078,-4695.36964422,0.00029998,2]
[311263449,1705002633088,-705.51400957,0.00029998,2]
[311263450,1705002633096,-1475.64080497,0.00029998,2]
[311263451,1705002633105,-295.08684247,0.00029998,2]
[311263452,1705002633114,-173.89319056,0.00029998,2]
[311263453,1705002633123,-150.0,0.00029999,2]
[311263454,1705002633133,-150.0,0.00029999,2]
[311263455,1705002633143,-157.33,0.00029999,2]
[311263456,1705002633152,-155.0,0.0003,4]
[311263457,1705002633163,-9622.66491322,0.0003,2]
[311263458,1705002633172,-8824.68108968,0.0003,4]
[311263459,1705002633183,-72797.28205453,0.0003,4]
[311263460,1705002633194,-581.6237216,0.0003,2]
[311263461,1705002633206,-18994.0891544,0.0003,4]
[311263462,1705002633216,-155.0,0.0003,2]
[311263463,1705002633225,-308366.93329374,0.0003,4]
[311263464,1705002633235,-169.66258545,0.0003,4]
[311263465,1705002633244,-578.55152615,0.0003,4]
[311263466,1705002633254,-202.0,0.0003,2]
[311263467,1705002633265,-450.0,0.0003002,3]
[311263468,1705002633275,-497.05,0.00030041,2]
[311263469,1705002633285,-300.0,0.00030136,2]
[311263470,1705002633296,-300.0,0.00030136,2]
[311263471,1705002633306,-8160.33,0.00030137,2]
[311263472,1705002633316,-9276.39091724,0.00030137,2]
[311263473,1705002633329,-723.60908276,0.00030137,2]
[311263474,1705002633339,-153.84,0.00030137,2]
[311263475,1705002633349,-155.0,0.00030137,2]
[311263476,1705002633360,-18.74453327,0.00030209,2]
[311263477,1705002633381,-981.25546673,0.00030209,2]
[311263478,1705002633391,-154.77882621,0.0003075,2]
[311263479,1705002633402,-674.2226438,0.00031,3]
[311263480,1705002633414,-25.7773562,0.00031,3]
[311263481,1705002633424,-150.67,0.0003103,2]
[311263482,1705002633435,-153.84,0.0003105,2]
[311263483,1705002633447,-286.91977514,0.000311,2]
[311263484,1705002633461,-285.8344283,0.000311,2]
[311263485,1705002633480,-1542.78234516,0.000311,2]
[311263486,1705002633524,-277.20203717,0.000311,2]
[311263487,1705002633537,-520.26141423,0.000311,2]
[311263488,1705002633547,-775.94025508,0.000311,2]
[311263489,1705002633559,-328.56219678,0.000311,2]
[311263503,1705002637405,-23931.49754814,0.000311,2]
[311263504,1705002637415,-362.43,0.00031507,2]
[311263505,1705002637424,-155.0,0.00031507,2]
[311263506,1705002637434,-165.05,0.00031644,2]
[311263507,1705002637445,-154.77882621,0.00031787,2]
[311263508,1705002637455,-157.34,0.00031799,2]
[311263509,1705002637464,-157.33,0.00031799,2]
[311263510,1705002637474,-127837.466536,0.000318,2]
[311263511,1705002637483,-152.0,0.000318,2]
[311263512,1705002637493,-1000.0,0.00031899,2]
[311263513,1705002637502,-168.92862253,0.00031943,5]
[311263514,1705002637512,-153.84,0.00031963,2]
[311263515,1705002637526,-12783.7466536,0.00031979,2]
[311263516,1705002637535,-749.92265436,0.00031987,2]
[311263517,1705002637545,-160.569182,0.00031989,2]
[311263518,1705002637554,-76702.4799218,0.0003199,2]
[311263519,1705002637565,-157.34,0.00031999,2]
[311263520,1705002637574,-155.0,0.00032,2]
[311263521,1705002637584,-173559.82731972,0.00032,2]
[311263522,1705002637593,-297.1247831,0.00032,4]
[311263523,1705002637603,-497.05,0.00032305,2]
[311263524,1705002637613,-150.67,0.000324,2]
[311263525,1705002637622,-450.0,0.000325,3]
[311263526,1705002637632,-812.98226223,0.00032777,4]
[311263527,1705002637642,-154.77882621,0.00032825,2]
[311263528,1705002637651,-38351.2399609,0.00032867,3]
[311263529,1705002637660,-286.80288901,0.00032876,2]
[311263530,1705002637669,-153.84,0.00032877,2]
[311263531,1705002637678,-12677.13,0.00032877,2]
[311263532,1705002637688,-1135.71,0.00032877,15]
[311263533,1705002637699,-51899.73,0.00032877,2]
[311263534,1705002637709,-155.0,0.00032877,2]
[311263535,1705002637718,-1000.0,0.000329,2]
[311263536,1705002637727,-373.08461011,0.00033,5]
[311263537,1705002637737,-750.0,0.00033,3]
[311263538,1705002637746,-1000.0,0.00033565,2]
[311263539,1705002637755,-150.67,0.0003377,2]
[311263540,1705002637764,-153.84,0.0003379,2]
[311263541,1705002637773,-812.98226223,0.00033815,6]
[311263542,1705002637782,-154.77882621,0.00033862,2]
[311263543,1705002637791,-168.92862253,0.00033986,6]
[311263544,1705002637800,-12783.7466536,0.0003399,5]
[311263545,1705002637809,-155.0,0.00033997,4]
[311263546,1705002637818,-155.0,0.00033997,4]
[311263547,1705002637827,-155.0,0.00034,2]
[311263548,1705002637836,-1000.0,0.00034,4]
[311263549,1705002637846,-802.19636617,0.00034,4]
[311263550,1705002637855,-201.6432844,0.00034,2]
[311263551,1705002637863,-250.90634092,0.00034,2]
[311263552,1705002637873,-250.90634092,0.00034,2]
[311263554,1705002637882,-250.90634092,0.00034,2]
[311263556,1705002637891,-250.90634092,0.00034,2]
[311263558,1705002637901,-250.90634092,0.00034,2]
[311263560,1705002637910,-250.90634092,0.00034,2]
[311263562,1705002637919,-250.90634092,0.00034,2]
[311263564,1705002637928,-250.90634092,0.00034,2]
[311263566,1705002637938,-250.90634092,0.00034,2]
[311263568,1705002637949,-250.90634092,0.00034,2]
[311263570,1705002637958,-250.90634092,0.00034,2]
[311263572,1705002637966,-250.90634092,0.00034,2]
[311263574,1705002637975,-250.90634092,0.00034,2]
[311263576,1705002637984,-250.90634092,0.00034,2]
[311263579,1705002637993,-250.90634092,0.00034,2]
[311263582,1705002638002,-250.90634092,0.00034,2]
[311263585,1705002638011,-250.90634092,0.00034,2]
[311263588,1705002638020,-250.90634092,0.00034,2]
[311263591,1705002638030,-250.90634092,0.00034,2]
[311263594,1705002638039,-250.90634092,0.00034,2]
[311263597,1705002638048,-250.90634092,0.00034,2]
[311263599,1705002638057,-250.90634092,0.00034,2]
[311263601,1705002638065,-250.90634092,0.00034,2]
[311263603,1705002638074,-250.90634092,0.00034,2]
[311263605,1705002638083,-250.90634092,0.00034,2]
[311263607,1705002638092,-250.90634092,0.00034,2]
[311263609,1705002638101,-250.90634092,0.00034,2]
[311263611,1705002638110,-250.90634092,0.00034,2]
[311263613,1705002638118,-250.90634092,0.00034,2]
[311263615,1705002638127,-250.90634092,0.00034,2]
[311263617,1705002638136,-250.90634092,0.00034,2]
[311263619,1705002638145,-250.90634092,0.00034,2]
[311263621,1705002638153,-250.90634092,0.00034,2]
[311263623,1705002638162,-250.90634092,0.00034,2]
[311263625,1705002638171,-250.90634092,0.00034,2]
[311263627,1705002638179,-250.90634092,0.00034,2]
[311263629,1705002638188,-250.90634092,0.00034,2]
[311263631,1705002638197,-250.90634092,0.00034,2]
[311263633,1705002638206,-250.90634092,0.00034,2]
[311263635,1705002638215,-250.90634092,0.00034,2]
[311263637,1705002638224,-250.90634092,0.00034,2]
[311263639,1705002638232,-250.90634092,0.00034,2]
[311263641,1705002638241,-250.90634092,0.00034,2]
[311263643,1705002638250,-250.90634092,0.00034,2]
[311263645,1705002638259,-250.90634092,0.00034,2]
[311263647,1705002638268,-250.90634092,0.00034,2]
[311263649,1705002638277,-250.90634092,0.00034,2]
[311263651,1705002638285,-250.90634092,0.00034,2]
[311263653,1705002638296,-250.90634092,0.00034,2]
[311263655,1705002638305,-250.90634092,0.00034,2]
[311263657,1705002638314,-152.14200783,0.00034147,2]
[311263659,1705002638323,-1000.0,0.000342,2]
[311263661,1705002638332,-1000.0,0.000342,2]
[311263663,1705002638341,-155.0,0.00034247,2]
[311263665,1705002638350,-1806.21,0.00034521,2]
[311263667,1705002638360,-497.05,0.00034568,2]
[311263669,1705002638369,-180.0,0.00034658,2]
[311263671,1705002638377,-153.84,0.00034703,2]
[311263673,1705002638386,-362.43,0.00034703,2]
[311263675,1705002638395,-152.14200778,0.00034837,2]
[311263677,1705002638404,-812.98226223,0.00034854,7]
[311263679,1705002638412,-1046.1504,0.00034899,2]
[311263681,1705002638421,-7500.0,0.000349,2]
[311263683,1705002638430,-209.0,0.000349,2]
[311263685,1705002638439,-2000.0,0.000349,4]
[311263687,1705002638448,-154.77882621,0.000349,2]
[311263689,1705002638457,-2951.66654736,0.000349,2]
[311263691,1705002638466,-2951.66654719,0.000349,2]
[311263693,1705002638475,-2951.66654719,0.000349,2]
[311263695,1705002638484,-2951.66654719,0.000349,2]
[311263697,1705002638493,-649.425,0.000349,2]
[311263699,1705002638502,-284.66913141,0.0003498,3]
[311263701,1705002638511,-645.80127188,0.0003498,3]
[311263702,1705002638521,-12783.7466536,0.00034985,7]
[311263704,1705002638530,-102269.973229,0.0003499,7]
[311263707,1705002638539,-8975.54325468,0.00034995,4]
[311263709,1705002638548,-749.92265436,0.00034997,2]
[311263711,1705002638557,-1191.11523449,0.00034999,4]
[311263713,1705002638568,-2291.97306282,0.00035,10]
[311263715,1705002638577,-255.41007841,0.00035,4]
[311263717,1705002638586,-1804.3259406,0.00035,4]
[311263719,1705002638595,-155.0,0.00035,4]
[311263721,1705002638604,-16499.22203045,0.00035,2]
[311263723,1705002638614,-202362.55411239,0.00035,2]
[311263725,1705002638627,-486344.2601054,0.00035,2]
[311263727,1705002638637,-619.07656999,0.00035,4]
[311263729,1705002638645,-2500.0,0.00035,2]
[311263731,1705002638655,-800.0,0.00035,3]
[311263733,1705002638664,-446.92770401,0.00035,2]
[311263735,1705002638673,-609.7089781,0.00035,2]
[311263737,1705002638682,-609.7089781,0.00035,2]
[311263739,1705002638692,-609.7089781,0.00035,2]
[311263741,1705002638700,-609.7089781,0.00035,2]
[311263743,1705002638709,-609.7089781,0.00035,2]
[311263745,1705002638718,-609.7089781,0.00035,2]
[311263764,1705002638896,-609.7089781,0.00035,2]
[311263766,1705002638907,-609.7089781,0.00035,2]
[311263769,1705002638916,-609.7089781,0.00035,2]
[311263771,1705002638926,-609.7089781,0.00035,2]
[311263772,1705002638936,-609.7089781,0.00035,2]
[311263774,1705002638945,-609.7089781,0.00035,2]
[311263776,1705002638955,-609.7089781,0.00035,2]
[311263778,1705002638964,-609.7089781,0.00035,2]
[311263780,1705002638973,-609.7089781,0.00035,2]
[311263782,1705002638982,-609.7089781,0.00035,2]
[311263784,1705002638991,-609.7089781,0.00035,2]
[311263786,1705002639000,-609.7089781,0.00035,2]
[311263788,1705002639010,-609.7089781,0.00035,2]
[311263790,1705002639019,-609.7089781,0.00035,2]
[311263792,1705002639028,-609.7089781,0.00035,2]
[311263794,1705002639036,-609.7089781,0.00035,2]
[311263796,1705002639046,-609.7089781,0.00035,2]
[311263797,1705002639055,-609.7089781,0.00035,2]
[311263798,1705002639065,-609.7089781,0.00035,2]
[311263799,1705002639074,-609.7089781,0.00035,2]
[311263800,1705002639084,-609.7089781,0.00035,2]
[311263801,1705002639093,-609.7089781,0.00035,2]
[311263802,1705002639104,-609.7089781,0.00035,2]
[311263803,1705002639113,-609.7089781,0.00035,2]
[311263804,1705002639123,-609.7089781,0.00035,2]
[311263805,1705002639132,-609.7089781,0.00035,2]
[311263806,1705002639141,-609.7089781,0.00035,2]
[311263807,1705002639151,-609.7089781,0.00035,2]
[311263808,1705002639160,-609.7089781,0.00035,2]
[311263809,1705002639170,-609.7089781,0.00035,2]
[311263810,1705002639179,-609.7089781,0.00035,2]
[311263811,1705002639189,-609.7089781,0.00035,2]
[311263813,1705002639202,-609.7089781,0.00035,2]
[311263815,1705002639211,-609.7089781,0.00035,2]
[311263817,1705002639220,-609.7089781,0.00035,2]
[311263819,1705002639230,-609.7089781,0.00035,2]
[311263821,1705002639238,-609.7089781,0.00035,2]
[311263823,1705002639247,-609.7089781,0.00035,2]
[311263825,1705002639256,-609.7089781,0.00035,2]
[311263827,1705002639265,-609.7089781,0.00035,2]
[311263829,1705002639274,-609.7089781,0.00035,2]
[311263831,1705002639283,-609.7089781,0.00035,2]
[311263833,1705002639291,-609.7089781,0.00035,2]
[311263835,1705002639301,-609.7089781,0.00035,2]
[311263837,1705002639312,-609.7089781,0.00035,2]
[311263839,1705002639321,-609.7089781,0.00035,2]
[311263841,1705002639333,-609.7089781,0.00035,2]
[311263843,1705002639343,-609.7089781,0.00035,2]
[311263845,1705002639351,-609.7089781,0.00035,2]
[311263847,1705002639362,-609.7089781,0.00035,2]
[311263849,1705002639371,-609.7089781,0.00035,2]
[311263851,1705002639380,-609.7089781,0.00035,2]
[311263853,1705002639389,-609.7089781,0.00035,2]
[311263855,1705002639398,-609.7089781,0.00035,2]
[311263857,1705002639407,-609.7089781,0.00035,2]
[311263859,1705002639415,-609.7089781,0.00035,2]
[311263861,1705002639424,-609.7089781,0.00035,2]
[311263863,1705002639434,-609.7089781,0.00035,2]
[311263865,1705002639444,-609.7089781,0.00035,2]
[311263867,1705002639453,-609.7089781,0.00035,2]
[311263869,1705002639463,-609.7089781,0.00035,2]
[311263871,1705002639472,-428.40120602,0.00035,2]
[311263873,1705002639485,-181.30777208,0.00035,2]
[311263875,1705002639494,-609.7089781,0.00035,2]
[311263877,1705002639503,-609.7089781,0.00035,2]
[311263879,1705002639513,-609.7089781,0.00035,2]
[311263881,1705002639523,-609.7089781,0.00035,2]
[311263883,1705002639535,-113.22395984,0.00035,2]
[311263890,1705002639588,-251.60714365,0.00035,2]
[311263893,1705002639615,-244.87787461,0.00035,2]
[311263895,1705002639632,-270.37812539,0.00035,2]
[311263898,1705002639644,-339.33085271,0.00035,2]
[311263900,1705002639654,-609.7089781,0.00035,2]
[311263902,1705002639664,-150.67,0.0003514,2]
[311263904,1705002639674,-152.14200778,0.00035527,2]
[311263906,1705002639684,-1000.0,0.000356,2]
[311263908,1705002639693,-153.84,0.00035616,2]
[311263909,1705002639703,-155.0,0.00035617,2]
[311263912,1705002639712,-408.08223185,0.00035619,2]
[311263914,1705002639732,-432.99651565,0.00035619,2]
[311263916,1705002639744,-158.9212525,0.00035619,2]
[311263917,1705002639755,-319.6918195,0.00035632,4]
[311263918,1705002639768,-953.2032035,0.00035632,4]
[311263919,1705002639779,-155.0,0.00035633,4]
[311263920,1705002639788,-1042.70046294,0.00035798,2]
[311263921,1705002639850,-609.7089781,0.00035,2]
[311263922,1705002639860,-763.50953706,0.00035798,2]
[311263923,1705002639869,-812.98226223,0.00035892,8]
[311263924,1705002639879,-256.42,0.00036,30]
[311263925,1705002639888,-1288.53657582,0.00036004,2]
[311263926,1705002639898,-168.92862253,0.00036029,7]
[311263927,1705002639906,-150.0,0.00036125,2]
[311263928,1705002639915,-256.42,0.00036137,30]
[311263929,1705002639924,-150.0,0.00036167,2]
[311263930,1705002639934,-2951.66654719,0.00036216,2]
[311263931,1705002639945,-152.14200778,0.00036218,2]
[311263932,1705002639953,-150.0,0.00036229,2]
[311263933,1705002639963,-150.0,0.0003625,2]
[311263934,1705002639972,-511.92,0.00036274,30]
[311263935,1705002639981,-6957.4734675,0.00036373,14]
[311263936,1705002639990,-150.0,0.00036373,2]
[311263937,1705002640000,-1288.53657582,0.00036373,2]
[311263938,1705002640009,-150.0,0.00036381,2]
[311263939,1705002640018,-150.0,0.00036394,2]
[311263940,1705002640027,-150.0,0.0003644,2]
[311263941,1705002640036,-150.0,0.00036484,2]
[311263942,1705002640046,-561.06263881,0.00036493,8]
[311263943,1705002640055,-561.06263874,0.00036493,8]
[311263944,1705002640064,-561.06263874,0.00036493,8]
[311263945,1705002640074,-150.0,0.00036493,2]
[311263946,1705002640082,-150.0,0.000365,2]
[311263947,1705002640091,-150.0,0.00036508,2]
[311263948,1705002640101,-150.67,0.0003651,2]
[311263949,1705002640110,-153.84,0.0003653,2]
[311263950,1705002640119,-150.0,0.00036561,2]
[311263951,1705002640129,-150.0,0.00036591,2]
[311263952,1705002640137,-150.0,0.00036593,2]
[311263953,1705002640146,-1135.71,0.00036613,15]
[311263954,1705002640155,-150.0,0.00036648,2]
[311263955,1705002640165,-150.0,0.00036654,2]
[311263956,1705002640174,-150.0,0.00036663,2]
[311263957,1705002640183,-1288.53657582,0.00036687,2]
[311263958,1705002640192,-250.0,0.00036699,2]
[311263959,1705002640201,-150.0,0.000367,2]
[311263960,1705002640209,-1500.0,0.00036708,2]
[311263961,1705002640218,-150.0,0.00036733,2]
[311263962,1705002640227,-150.0,0.00036742,2]
[311263963,1705002640236,-150.0,0.00036742,2]
[311263964,1705002640245,-1288.53657582,0.00036747,2]
[311263966,1705002640254,-150.0,0.00036759,2]
[311263969,1705002640262,-150.0,0.000368,14]
[311263971,1705002640271,-497.05,0.00036832,2]
[311263973,1705002640280,-150.0,0.0003684,2]
[311263975,1705002640289,-150.0,0.00036849,2]
[311263977,1705002640299,-1000.0,0.00036899,2]
[311263979,1705002640309,-152.14200778,0.00036908,2]
[311263981,1705002640318,-1000.0,0.00036922,2]